fUST/lending_fUST_20250524
["ID","MTS","AMOUNT","RATE_DAILY","PERIOD"]
[362175709,1748058645292,-570.2362768,0.0002337,2]
[362175710,1748058645302,-154.5569282,0.0002337,2]
[362175711,1748058645312,-182.6893393,0.0002337,2]
[362175712,1748058645322,-153.6743116,0.0002337,2]
[362175713,1748058645333,-176.1579227,0.0002337,2]
[362175714,1748058645343,-158.2393474,0.0002337,2]
[362175715,1748058645353,-570.2362768,0.0002337,2]
[362175716,1748058645363,-153.0,0.0002337,2]
[362175717,1748058645373,-176.1579227,0.0002337,2]
[362175718,1748058645383,-570.2362768,0.0002337,2]
[362175719,1748058645393,-500.0,0.0002356,3]
[362175720,1748058645403,-500.0,0.0002356,2]
[362175721,1748058645413,-500.0,0.0002356,2]
[362175722,1748058645423,-500.0,0.0002356,2]
[362175723,1748058645433,-476.79495166,0.0002356,2]
[362175724,1748058645444,-500.0,0.0002356,2]
[362175725,1748058645455,-500.0,0.0002356,2]
[362175726,1748058645465,-500.0,0.0002356,2]
[362175727,1748058645475,-249.27665602,0.0002356,2]
[362175728,1748058645485,-235.07137479,0.0002356,2]
[362175729,1748058645494,-500.0,0.0002356,2]
[362175730,1748058645504,-500.0,0.0002356,2]
[362175731,1748058645516,-500.0,0.0002356,2]
[362175732,1748058645527,-500.0,0.00023561,3]
[362175733,1748058645539,-430.0,0.00023561,3]
[362175734,1748058645549,-430.0,0.00023561,3]
[362175735,1748058645559,-430.0,0.00023561,3]
[362175736,1748058645570,-430.0,0.00023561,3]
[362175737,1748058645580,-430.0,0.00023561,3]
[362175738,1748058645590,-430.0,0.00023561,3]
[362175739,1748058645600,-430.0,0.00023561,2]
[362175740,1748058645610,-430.0,0.00023561,3]
[362175741,1748058645621,-863.62,0.00023561,3]
[362175742,1748058645631,-430.0,0.00023561,3]
[362175743,1748058645641,-430.0,0.00023561,3]
[362175744,1748058645651,-1094.98,0.00023561,3]
[362175745,1748058645662,-898.11,0.00023561,3]
[362175746,1748058645673,-430.0,0.00023561,3]
[362175747,1748058645683,-1912.75,0.00023561,3]
[362175748,1748058645692,-873.59,0.00023561,3]
[362175749,1748058645702,-430.0,0.00023561,3]
[362175750,1748058645714,-1656.33,0.00023561,3]
[362175751,1748058645724,-430.0,0.00023561,3]
[362175752,1748058645734,-660.67,0.00023561,3]
[362175753,1748058645745,-468.87,0.00023561,3]
[362175754,1748058645754,-430.0,0.00023561,3]
[362175755,1748058645764,-914.26,0.00023561,3]
[362175756,1748058645774,-2191.55,0.00023561,3]
[362175757,1748058645785,-714.12,0.00023561,3]
[362175759,1748058645796,-430.0,0.00023561,3]
[362175761,1748058645806,-430.0,0.00023561,3]
[362175764,1748058645816,-374.95949468,0.0002363,3]
[362175766,1748058645826,-474.20354946,0.0002363,3]
[362175768,1748058645836,-278.81751924,0.00023834,3]
[362175770,1748058645846,-500.0,0.00023835,3]
[362175772,1748058645856,-430.0,0.00023835,3]
[362175774,1748058645866,-430.0,0.00023835,3]
[362175776,1748058645876,-430.0,0.00023835,3]
[362175778,1748058645886,-258.6673002,0.00023835,3]
[362175780,1748058645897,-430.0,0.00023835,3]
[362175782,1748058645907,-430.0,0.00023835,3]
[362175784,1748058645916,-430.0,0.00023835,2]
[362175786,1748058645927,-430.0,0.00023835,3]
[362175788,1748058645938,-863.62,0.00023835,3]
[362175789,1748058645948,-430.0,0.00023835,3]
[362175790,1748058645959,-430.0,0.00023835,3]
[362175791,1748058645970,-1094.98,0.00023835,3]
[362175792,1748058645981,-898.11,0.00023835,3]
[362175793,1748058645993,-430.0,0.00023835,3]
[362175794,1748058646003,-1912.75,0.00023835,3]
[362175795,1748058646013,-873.59,0.00023835,3]
[362175796,1748058646023,-430.0,0.00023835,3]
[362175797,1748058646033,-1656.33,0.00023835,3]
[362175798,1748058646043,-430.0,0.00023835,3]
[362175799,1748058646054,-660.67,0.00023835,3]
[362175800,1748058646066,-468.87,0.00023835,3]
[362175801,1748058646076,-430.0,0.00023835,3]
[362175802,1748058646086,-914.26,0.00023835,3]
[362175803,1748058646096,-2191.55,0.00023835,3]
[362175804,1748058646106,-714.12,0.00023835,3]
[362175805,1748058646116,-430.0,0.00023835,3]
[362175806,1748058646127,-430.0,0.00023835,3]
[362175807,1748058646138,-5000.0,0.00024,2]
[362175808,1748058646150,-5000.0,0.00024,2]
[362175809,1748058646160,-5000.0,0.00024,2]
[362175810,1748058646171,-5000.0,0.00024,2]
[362175811,1748058646182,-507.83572784,0.00024109,3]
[362175812,1748058646195,-430.0,0.00024109,3]
[362175813,1748058646205,-430.0,0.00024109,3]
[362175814,1748058646216,-430.0,0.00024109,3]
[362175815,1748058646321,-430.0,0.00024109,3]
[362175816,1748058646331,-430.0,0.00024109,3]
[362175817,1748058646341,-430.0,0.00024109,2]
[362175818,1748058646351,-430.0,0.00024109,3]
[362175819,1748058646360,-863.62,0.00024109,3]
[362175820,1748058646370,-430.0,0.00024109,3]
[362175821,1748058646379,-430.0,0.00024109,3]
[362175822,1748058646388,-1094.98,0.00024109,3]
[362175823,1748058646398,-898.11,0.00024109,3]
[362175824,1748058646407,-430.0,0.00024109,3]
[362175825,1748058646416,-1912.75,0.00024109,3]
[362175826,1748058646426,-873.59,0.00024109,3]
[362175827,1748058646436,-395.57186481,0.00024109,3]
[362175828,1748058646445,-1656.33,0.00024109,3]
[362175829,1748058646454,-430.0,0.00024109,3]
[362175830,1748058646463,-660.67,0.00024109,3]
[362175831,1748058646473,-468.87,0.00024109,3]
[362175832,1748058646483,-430.0,0.00024109,3]
[362175833,1748058646492,-914.26,0.00024109,3]
[362175834,1748058646502,-2191.55,0.00024109,3]
[362175835,1748058646511,-714.12,0.00024109,3]
[362175836,1748058646521,-430.0,0.00024109,3]
[362175837,1748058646530,-430.0,0.00024109,3]
[362175838,1748058646539,-158.2393474,0.00024192,2]
[362175839,1748058646550,-176.1579227,0.00024192,2]
[362175840,1748058646560,-570.2362768,0.00024192,2]
[362175841,1748058646570,-158.2393474,0.00024192,2]
[362175842,1748058646579,-153.0,0.00024192,2]
[362175843,1748058646588,-570.2362768,0.00024192,2]
[362175844,1748058646598,-176.1579227,0.00024192,2]
[362175845,1748058646608,-176.1579227,0.00024192,2]
[362175846,1748058646617,-316.0400901,0.00024192,2]
[362175847,1748058646627,-570.2362768,0.00024192,2]
[362175848,1748058646636,-570.2362768,0.00024192,2]
[362175849,1748058646645,-176.1579227,0.00024192,2]
[362175850,1748058646656,-176.1579227,0.00024192,2]
[362175851,1748058646668,-570.2362768,0.00024192,2]
[362175852,1748058646677,-176.1579227,0.00024192,2]
[362175853,1748058646687,-560.6019029,0.00024192,2]
[362175854,1748058646698,-430.0,0.00024383,3]
[362175855,1748058646710,-430.0,0.00024383,3]
[362175856,1748058646720,-575.97,0.00024383,3]
[362175857,1748058646731,-430.0,0.00024383,3]
[362175858,1748058646742,-430.0,0.00024383,3]
[362175859,1748058646752,-430.0,0.00024383,2]
[362175860,1748058646762,-430.0,0.00024383,3]
[362175861,1748058646772,-863.62,0.00024383,3]
[362175862,1748058646781,-430.0,0.00024383,3]
[362175863,1748058646791,-430.0,0.00024383,3]
[362175864,1748058646801,-1094.98,0.00024383,3]
[362175865,1748058646810,-898.11,0.00024383,3]
[362175866,1748058646822,-430.0,0.00024383,3]
[362175867,1748058646832,-1912.75,0.00024383,3]
[362175868,1748058646843,-873.59,0.00024383,3]
[362175869,1748058646853,-1656.33,0.00024383,3]
[362175870,1748058646862,-430.0,0.00024383,3]
[362175871,1748058646875,-660.67,0.00024383,3]
[362175872,1748058646884,-468.87,0.00024383,3]
[362175873,1748058646896,-430.0,0.00024383,3]
[362175874,1748058646907,-914.26,0.00024383,3]
[362175875,1748058646918,-2191.55,0.00024383,3]
[362175876,1748058646929,-714.12,0.00024383,3]
[362175877,1748058646939,-430.0,0.00024383,3]
[362175878,1748058646949,-430.0,0.00024383,3]
[362175879,1748058646959,-215.0738,0.00024476,2]
[362175880,1748058646970,-841.828712,0.0002449,2]
[362175881,1748058646982,-430.0,0.00024657,3]
[362175882,1748058646993,-430.0,0.00024657,3]
[362175883,1748058647003,-457.78,0.00024657,3]
[362175884,1748058647014,-430.0,0.00024657,3]
[362175885,1748058647023,-430.0,0.00024657,2]
[362175886,1748058647033,-430.0,0.00024657,3]
[362175887,1748058647043,-863.62,0.00024657,3]
[362175888,1748058647052,-430.0,0.00024657,3]
[362175889,1748058647061,-430.0,0.00024657,3]
[362175890,1748058647071,-1094.98,0.00024657,3]
[362175891,1748058647080,-898.11,0.00024657,3]
[362175892,1748058647089,-430.0,0.00024657,3]
[362175893,1748058647099,-1912.75,0.00024657,3]
[362175894,1748058647109,-873.59,0.00024657,3]
[362175895,1748058647119,-1656.33,0.00024657,3]
[362175896,1748058647128,-430.0,0.00024657,3]
[362175897,1748058647138,-660.67,0.00024657,3]
[362175898,1748058647148,-468.87,0.00024657,3]
[362175899,1748058647158,-430.0,0.00024657,3]
[362175900,1748058647168,-914.26,0.00024657,3]
[362175901,1748058647180,-2191.55,0.00024657,3]
[362175902,1748058647192,-714.12,0.00024657,3]
[362175903,1748058647202,-430.0,0.00024657,3]
[362175904,1748058647211,-430.0,0.00024657,3]
[362175905,1748058647222,-518.64091912,0.00024846,2]
[362175906,1748058647233,-237.00092146,0.00024868,7]
[362175907,1748058647244,-2354.812,0.00024869,2]
[362175908,1748058647253,-501.52565351,0.00024873,2]
[362175909,1748058647263,-151.0,0.000249,7]
[362175910,1748058647273,-2009.84611413,0.000249,2]
[362175911,1748058647285,-430.0,0.00024931,3]
[362175912,1748058647294,-430.0,0.00024931,3]
[362175913,1748058647303,-430.0,0.00024931,3]
[362175914,1748058647314,-430.0,0.00024931,2]
[362175915,1748058647325,-430.0,0.00024931,3]
[362175916,1748058647334,-863.62,0.00024931,3]
[362175917,1748058647344,-430.0,0.00024931,3]
[362175918,1748058647354,-430.0,0.00024931,3]
[362175919,1748058647363,-1094.98,0.00024931,3]
[362175920,1748058647373,-898.11,0.00024931,3]
[362175921,1748058647383,-430.0,0.00024931,3]
[362175922,1748058647393,-1912.75,0.00024931,3]
[362175923,1748058647403,-873.59,0.00024931,3]
[362175924,1748058647413,-1656.33,0.00024931,3]
[362175925,1748058647422,-478.96068556,0.00024931,3]
[362175926,1748058647432,-660.67,0.00024931,3]
[362175927,1748058647442,-468.87,0.00024931,3]
[362175928,1748058647452,-430.0,0.00024931,3]
[362175929,1748058647462,-914.26,0.00024931,3]
[362175930,1748058647473,-2191.55,0.00024931,3]
[362175931,1748058647483,-714.12,0.00024931,3]
[362175932,1748058647493,-430.0,0.00024931,3]
[362175933,1748058647502,-430.0,0.00024931,3]
[362175934,1748058647512,-500.0,0.00024973,2]
[362175935,1748058647521,-500.0,0.00024973,2]
[362175936,1748058647532,-2009.84611411,0.00024988,2]
[362175937,1748058647541,-9609.40385006,0.00025,2]
[362175938,1748058647551,-2733.61012974,0.00025,3]
[362175939,1748058647561,-261742.03967649,0.00025,30]
[362175940,1748058647580,-2671421.14872661,0.00025,30]
[362175945,1748059184848,-173.0,0.00016438,3]
[362175947,1748059251763,-167.178634,0.00013699,2]
[362176000,1748059832084,-209.41570968,0.00021259,2]
[362176002,1748059832095,-865.32595513,0.00021383,2]
[362176004,1748059832107,-5333.23967887,0.00021383,2]
[362176006,1748059832116,-666.76032113,0.00021817,2]
[362176010,1748059832141,-328.49959203,0.00021817,2]
[362176012,1748059832150,-208.01601606,0.000219,6]
[362176014,1748059832160,-500.0,0.00021916,2]
[362176016,1748059832169,-109.97601298,0.00021916,2]
[362176030,1748059832309,-383.83958085,0.00021916,2]
[362176032,1748059832320,-300.0,0.00021916,2]
[362176034,1748059832329,-160.0,0.00021916,2]
[362176037,1748059832339,-6463.46405306,0.00021917,2]
[362176039,1748059832348,-430.0,0.00021917,3]
[362176041,1748059832358,-400.0,0.00021917,3]
[362176043,1748059832368,-400.0,0.00021917,3]
[362176046,1748059832378,-400.0,0.00021917,3]
[362176049,1748059832388,-503.66294754,0.00021917,3]
[362176052,1748059832397,-452.94259567,0.00021917,3]
[362176055,1748059832407,-450.0,0.00021917,3]
[362176058,1748059832416,-430.0,0.00021917,3]
[362176061,1748059832426,-430.0,0.00021917,3]
[362176063,1748059832436,-402.17366004,0.00021917,3]
[362176065,1748059832445,-508.88095846,0.00021917,3]
[362176067,1748059832454,-158.14971478,0.00021917,3]
[362176069,1748059832464,-430.0,0.00021917,3]
[362176071,1748059832474,-430.0,0.00021917,3]
[362176073,1748059832483,-505.04564875,0.00021917,3]
[362176075,1748059832492,-483.17,0.00021917,3]
[362176077,1748059832502,-504.95529508,0.00021917,3]
[362176079,1748059832511,-430.0,0.00021917,3]
[362176082,1748059832521,-447.57,0.00021917,3]
[362176084,1748059832532,-285.9579736,0.00021917,3]
[362176086,1748059832541,-430.0,0.00021917,3]
[362176087,1748059832550,-430.0,0.00021917,3]
[362176090,1748059832560,-417.68354857,0.00021917,3]
[362176091,1748059832570,-418.86418021,0.00021917,3]
[362176094,1748059832580,-431.51526081,0.00021917,3]
[362176096,1748059832590,-407.92191018,0.00021917,3]
[362176098,1748059832599,-402.71754168,0.00021917,3]
[362176099,1748059832609,-430.0,0.00021917,3]
[362176101,1748059832619,-307.45481803,0.00021917,3]
[362176104,1748059832629,-314.04921286,0.00021917,3]
[362176106,1748059832639,-430.0,0.00021917,3]
[362176108,1748059832648,-401.8984415,0.00021917,3]
[362176109,1748059832657,-410.26930826,0.00021917,3]
[362176111,1748059832667,-425.0,0.00021917,3]
[362176113,1748059832676,-430.0,0.00021917,3]
[362176116,1748059832687,-430.0,0.00021917,3]
[362176118,1748059832696,-248.03,0.00021917,3]
[362176120,1748059832706,-431.40357897,0.00021917,3]
[362176122,1748059832715,-470.0,0.00021917,3]
[362176124,1748059832726,-430.0,0.00021917,3]
[362176126,1748059832735,-516.52436106,0.00021917,3]
[362176128,1748059832746,-430.0,0.00021917,3]
[362176130,1748059832755,-415.16396479,0.00021917,3]
[362176132,1748059832765,-430.0,0.00021917,3]
[362176134,1748059832775,-430.0,0.00021917,3]
[362176136,1748059832785,-430.0,0.00021917,3]
[362176138,1748059832794,-430.0,0.00021917,3]
[362176140,1748059832804,-430.0,0.00021917,3]
[362176142,1748059832814,-430.0,0.00021917,3]
[362176143,1748059832823,-430.0,0.00021917,3]
[362176147,1748059832843,-430.0,0.00021917,3]
[362176149,1748059832854,-430.0,0.00021917,3]
[362176151,1748059832863,-430.0,0.00021917,3]
[362176153,1748059832872,-508.5651375,0.00021917,3]
[362176155,1748059832882,-430.0,0.00021917,3]
[362176157,1748059832892,-430.0,0.00021917,3]
[362176159,1748059832903,-400.0,0.00021917,3]
[362176161,1748059832914,-400.0,0.00021917,3]
[362176163,1748059832923,-430.0,0.00021917,3]
[362176185,1748059833132,-430.0,0.00021917,3]
[362176187,1748059833143,-430.0,0.00021917,3]
[362176189,1748059833154,-430.0,0.00021917,3]
[362176191,1748059833164,-309.580068,0.00021917,3]
[362176193,1748059833174,-400.0,0.00021917,3]
[362176195,1748059833184,-430.0,0.00021917,3]
[362176197,1748059833193,-411.35613136,0.00021917,3]
[362176199,1748059833204,-430.0,0.00021917,3]
[362176201,1748059833214,-430.0,0.00021917,3]
[362176203,1748059833225,-400.0,0.00021917,3]
[362176205,1748059833235,-400.0,0.00021917,3]
[362176207,1748059833245,-430.0,0.00021917,3]
[362176209,1748059833255,-400.0,0.00021917,3]
[362176211,1748059833264,-400.0,0.00021917,3]
[362176213,1748059833274,-430.0,0.00021917,3]
[362176215,1748059833284,-400.0,0.00021917,3]
[362176217,1748059833294,-430.0,0.00021917,3]
[362176219,1748059833304,-430.0,0.00021917,3]
[362176221,1748059833313,-400.0,0.00021917,3]
[362176223,1748059833323,-430.0,0.00021917,3]
[362176225,1748059833333,-400.0,0.00021917,3]
[362176227,1748059833343,-430.0,0.00021917,3]
[362176229,1748059833353,-419.04785281,0.00021917,3]
[362176231,1748059833363,-430.0,0.00021917,3]
[362176233,1748059833373,-400.0,0.00021917,3]
[362176235,1748059833382,-400.0,0.00021917,3]
[362176237,1748059833392,-430.0,0.00021917,3]
[362176239,1748059833402,-243.02523068,0.00021917,3]
[362176241,1748059833412,-405.70810898,0.00021917,3]
[362176243,1748059833421,-418.93027273,0.00021917,3]
[362176245,1748059833431,-503.76271534,0.00021917,3]
[362176247,1748059833440,-515.40365239,0.00021917,3]
[362176249,1748059833451,-430.0,0.00021917,3]
[362176251,1748059833461,-505.39024693,0.00021917,3]
[362176253,1748059833470,-430.0,0.00021917,3]
[362176255,1748059833480,-430.0,0.00021917,3]
[362176257,1748059833489,-400.0,0.00021917,3]
[362176259,1748059833498,-430.0,0.00021917,3]
[362176261,1748059833507,-430.0,0.00021917,3]
[362176263,1748059833517,-430.0,0.00021917,3]
[362176265,1748059833526,-430.0,0.00021917,3]
[362176267,1748059833536,-400.0,0.00021917,3]
[362176269,1748059833546,-383.07557302,0.00021917,3]
[362176271,1748059833556,-400.0,0.00021917,3]
[362176273,1748059833566,-416.49191127,0.00021917,3]
[362176275,1748059833576,-406.66746821,0.00021917,3]
[362176277,1748059833585,-430.0,0.00021917,3]
[362176279,1748059833596,-403.54420471,0.00021917,3]
[362176281,1748059833605,-430.0,0.00021917,3]
[362176283,1748059833614,-430.0,0.00021917,3]
[362176285,1748059833624,-430.0,0.00021917,3]
[362176287,1748059833634,-419.67536165,0.00021917,3]
[362176290,1748059833644,-416.58471207,0.00021917,3]
[362176292,1748059833653,-430.0,0.00021917,3]
[362176294,1748059833663,-430.0,0.00021917,3]
[362176296,1748059833673,-404.11366905,0.00021917,3]
[362176298,1748059833683,-430.0,0.00021917,3]
[362176300,1748059833692,-623.78899441,0.00021917,3]
[362176302,1748059833702,-430.0,0.00021917,3]
[362176304,1748059833712,-430.0,0.00021917,3]
[362176306,1748059833721,-430.0,0.00021917,3]
[362176308,1748059833730,-430.0,0.00021917,3]
[362176310,1748059833740,-430.0,0.00021917,3]
[362176312,1748059833750,-412.82818683,0.00021917,3]
[362176314,1748059833760,-430.0,0.00021917,3]
[362176316,1748059833769,-470.0,0.00021917,3]
[362176317,1748059833779,-430.0,0.00021917,3]
[362176318,1748059833789,-384.20434416,0.00021917,3]
[362176321,1748059833800,-430.0,0.00021917,3]
[362176323,1748059833810,-398.74362186,0.00021917,3]
[362176325,1748059833819,-404.635832,0.00021917,3]
[362176327,1748059833835,-470.0,0.00021917,3]
[362176329,1748059833844,-470.0,0.00021917,3]
[362176331,1748059833854,-430.0,0.00021917,3]
[362176333,1748059833864,-430.0,0.00021917,3]
[362176335,1748059833874,-430.0,0.00021917,3]
[362176336,1748059833883,-380.73392419,0.00021917,3]
[362176337,1748059833893,-430.0,0.00021917,3]
[362176338,1748059833904,-430.0,0.00021917,3]
[362176339,1748059833914,-430.0,0.00021917,3]
[362176340,1748059833924,-430.0,0.00021917,3]
[362176341,1748059833934,-430.0,0.00021917,3]
[362176342,1748059833944,-446.98,0.00021917,3]
[362176343,1748059833954,-430.0,0.00021917,3]
[362176344,1748059833964,-378.36710845,0.00021917,3]
[362176345,1748059833973,-362.15540799,0.00021917,3]
[362176346,1748059833984,-430.0,0.00021917,3]
[362176347,1748059833994,-223.49018546,0.00021917,3]
[362176348,1748059834004,-430.0,0.00021917,3]
[362176349,1748059834013,-430.0,0.00021917,3]
[362176350,1748059834023,-430.0,0.00021917,3]
[362176351,1748059834033,-430.0,0.00021917,3]
[362176352,1748059834042,-382.03764993,0.00021917,3]
[362176353,1748059834054,-430.0,0.00021917,3]
[362176354,1748059834064,-361.75417049,0.00021917,3]
[362176355,1748059834074,-430.0,0.00021917,3]
[362176356,1748059834083,-430.0,0.00021917,3]
[362176357,1748059834093,-430.0,0.00021917,3]
[362176358,1748059834103,-430.0,0.00021917,3]
[362176359,1748059834113,-430.0,0.00021917,3]
[362176360,1748059834122,-430.0,0.00021917,3]
[362176361,1748059834133,-430.0,0.00021917,3]
[362176362,1748059834143,-430.0,0.00021917,3]
[362176363,1748059834153,-561.18857243,0.00021917,3]
[362176364,1748059834162,-430.0,0.00021917,3]
[362176365,1748059834172,-370.0,0.00021917,3]
[362176366,1748059834181,-413.90037442,0.00021917,3]
[362176367,1748059834190,-430.0,0.00021917,3]
[362176368,1748059834199,-430.0,0.00021917,3]
[362176369,1748059834208,-430.0,0.00021917,3]
[362176370,1748059834218,-376.80851865,0.00021917,3]
[362176371,1748059834228,-430.0,0.00021917,3]
[362176372,1748059834238,-356.28136341,0.00021917,3]
[362176373,1748059834247,-552.75987912,0.00021917,3]
[362176374,1748059834257,-430.0,0.00021917,3]
[362176375,1748059834267,-430.0,0.00021917,3]
[362176376,1748059834276,-430.0,0.00021917,3]
[362176377,1748059834286,-370.0,0.00021917,3]
[362176378,1748059834295,-404.144865,0.00021917,3]
[362176379,1748059834305,-430.0,0.00021917,3]
[362176380,1748059834315,-300.0,0.00021917,3]
[362176381,1748059834324,-430.0,0.00021917,3]
[362176382,1748059834334,-430.0,0.00021917,3]
[362176383,1748059834344,-430.0,0.00021917,3]
[362176384,1748059834354,-407.96637653,0.00021917,3]
[362176385,1748059834363,-430.0,0.00021917,3]
[362176386,1748059834372,-430.0,0.00021917,3]
[362176387,1748059834382,-430.0,0.00021917,3]
[362176388,1748059834391,-430.0,0.00021917,3]
[362176389,1748059834400,-430.0,0.00021917,3]
[362176390,1748059834411,-498.61877372,0.00021917,3]
[362176391,1748059834420,-430.0,0.00021917,3]
[362176392,1748059834430,-430.0,0.00021917,3]
[362176393,1748059834440,-430.0,0.00021917,3]
[362176394,1748059834449,-430.0,0.00021917,3]
[362176395,1748059834461,-450.0,0.00021917,3]
[362176396,1748059834472,-401.6777489,0.00021917,3]
[362176397,1748059834483,-430.0,0.00021917,3]
[362176398,1748059834493,-430.0,0.00021917,3]
[362176399,1748059834502,-403.0994209,0.00021917,3]
[362176400,1748059834512,-450.0,0.00021917,3]
[362176401,1748059834521,-620.6917928,0.00021917,3]
[362176402,1748059834531,-450.0,0.00021917,3]
[362176403,1748059834543,-430.0,0.00021917,3]
[362176404,1748059834553,-430.0,0.00021917,3]
[362176405,1748059834563,-430.0,0.00021917,3]
[362176406,1748059834575,-523.10685768,0.00021917,3]
[362176407,1748059834587,-375.64,0.00021917,3]
[362176408,1748059834597,-430.0,0.00021917,3]
[362176409,1748059834607,-450.0,0.00021917,3]
[362176410,1748059834618,-430.0,0.00021917,3]
[362176411,1748059834628,-430.0,0.00021917,3]
[362176412,1748059834638,-232.12537655,0.00021917,3]
[362176413,1748059834648,-430.0,0.00021917,3]
[362176414,1748059834659,-430.0,0.00021917,3]
[362176415,1748059834668,-450.0,0.00021917,3]
[362176416,1748059834678,-403.4372791,0.00021917,3]
[362176417,1748059834689,-1640.96,0.00021917,3]
[362176418,1748059834700,-450.0,0.00021917,3]
[362176419,1748059834710,-430.0,0.00021917,3]
[362176420,1748059834720,-430.0,0.00021917,3]
[362176421,1748059834730,-505.315503,0.00021917,3]
[362176422,1748059834739,-430.0,0.00021917,3]
[362176423,1748059834749,-500.0,0.00021917,3]
[362176424,1748059834759,-430.0,0.00021917,3]
[362176425,1748059834768,-430.0,0.00021917,3]
[362176426,1748059834779,-400.0,0.00021917,3]
[362176427,1748059834788,-430.0,0.00021917,3]
[362176428,1748059834798,-430.0,0.00021917,3]
[362176429,1748059834807,-430.0,0.00021917,3]
[362176430,1748059834818,-430.0,0.00021917,3]
[362176431,1748059834828,-430.0,0.00021917,3]
[362176432,1748059834838,-430.0,0.00021917,3]
[362176433,1748059834847,-376.30547701,0.00021917,3]
[362176434,1748059834856,-430.0,0.00021917,3]
[362176435,1748059834866,-403.82893971,0.00021917,3]
[362176436,1748059834876,-430.0,0.00021917,3]
[362176437,1748059834886,-450.0,0.00021917,3]
[362176438,1748059834896,-430.0,0.00021917,3]
[362176439,1748059834906,-612.28,0.00021917,3]
[362176440,1748059834915,-430.0,0.00021917,3]
[362176441,1748059834926,-430.0,0.00021917,3]
[362176442,1748059834937,-450.0,0.00021917,3]
[362176443,1748059834948,-430.0,0.00021917,3]
[362176444,1748059834960,-430.0,0.00021917,3]
[362176445,1748059834972,-430.0,0.00021917,3]
[362176446,1748059834981,-430.0,0.00021917,3]
[362176447,1748059834991,-430.0,0.00021917,3]
[362176448,1748059835000,-430.0,0.00021917,3]
[362176449,1748059835010,-506.01280931,0.00021917,3]
[362176450,1748059835019,-400.0,0.00021917,3]
[362176451,1748059835030,-430.0,0.00021917,3]
[362176452,1748059835039,-430.0,0.00021917,3]
[362176453,1748059835049,-405.92974912,0.00021917,3]
[362176454,1748059835062,-508.52002369,0.00021917,3]
[362176455,1748059835072,-430.0,0.00021917,3]
[362176456,1748059835082,-430.0,0.00021917,3]
[362176457,1748059835091,-430.0,0.00021917,3]
[362176458,1748059835100,-403.41986618,0.00021917,3]
[362176459,1748059835110,-400.0,0.00021917,3]
[362176460,1748059835119,-430.0,0.00021917,3]
[362176461,1748059835129,-416.46770572,0.00021917,3]
[362176462,1748059835138,-430.0,0.00021917,3]
[362176463,1748059835148,-400.0,0.00021917,3]
[362176464,1748059835157,-400.0,0.00021917,3]
[362176465,1748059835166,-430.0,0.00021917,3]
[362176466,1748059835177,-430.0,0.00021917,3]
[362176467,1748059835188,-430.0,0.00021917,3]
[362176468,1748059835199,-430.0,0.00021917,3]
[362176469,1748059835209,-430.0,0.00021917,3]
[362176470,1748059835221,-430.0,0.00021917,3]